Cogmind - Beta 12 X4 @@@ ROGUE MODE // 2022.11.13 @ 13:05:54 Player: aoemica Result: Escaped! Performance ------------- Evolutions (9) 4500 Regions Visited (32) 6400 Robots Destroyed (78) 390 Value Destroyed (2083) 2083 Prototype IDs (246) 4920 Alien Tech Used (4) 800 Bonus (13225) 13225 TOTAL SCORE: 32318 Bonus ------- Follower Combat Kills 1943 Network Hubs Disabled 200 Aligned with FarCom 300 Met Data Miner 300 Used Data Conduit 3000 Met Imprinter 300 Met Zhirov 300 Built Enhanced Grunts 300 Found Hidden Lab 3000 Decrypted A0 Command 3000 Win 3000 Friendly Fire -2418 Cogmind --------- Core Integrity 1600/1600 Matter 128/300 Energy 696/700 System Corruption 0% Temperature Cool (17) Movement Flying (14) Location To Epsilon Eridani Parts ------- > --- POWER (2) -------- Micro Fission Core Micro Antimatter Reactor > --- PROPULSION (9) --- Improved Cesium-ion Thruster Cooled Nuclear Pulse Thruster Cooled Nuclear Pulse Thruster Cooled Nuclear Pulse Thruster Cooled Nuclear Pulse Thruster Cooled Nuclear Pulse Thruster Cooled Nuclear Pulse Thruster Nuclear Pulse Array > --- UTILITY (12) ----- Advanced Cooling System Advanced Energy Well Structural Scanner Enhanced Optical Array Improved Utility Shielding Improved Utility Shielding Experimental Powered Armor Advanced Hacking Suite System Mapper Quantum Router > --- WEAPON (3) ------- Warp Cannon Makeshift Sword Spear > --- INVENTORY (5) ---- Cooled Nuclear Pulse Thruster Advanced Cooling System Deep Network Scanner Transdimensional Reconstructor Heavy Rocket Launcher Peak State ------------ > --- POWER ------------ Micro Fission Core Micro Antimatter Reactor > --- PROPULSION ------- Improved Cesium-ion Thruster Cooled Nuclear Pulse Thruster Cooled Nuclear Pulse Thruster Cooled Nuclear Pulse Thruster Cooled Nuclear Pulse Thruster Cooled Nuclear Pulse Thruster Cooled Nuclear Pulse Thruster Nuclear Pulse Array > --- UTILITY ---------- Advanced Cooling System Advanced Energy Well Structural Scanner Enhanced Optical Array Improved Utility Shielding Improved Utility Shielding Experimental Powered Armor Advanced Hacking Suite System Mapper Quantum Router > --- WEAPON ----------- Warp Cannon Makeshift Sword Spear > --- INVENTORY -------- Cooled Nuclear Pulse Thruster Advanced Cooling System Deep Network Scanner Transdimensional Reconstructor Heavy Rocket Launcher [Rating: 156] Favorites ----------- Power Micro Fission Core Engine Light Ion Engine Power Core Micro Fission Core Reactor Micro Antimatter Reactor Propulsion Xenon Bombardment Thruster Treads Armored Treads Leg Aluminum Leg Flight Unit Xenon Bombardment Thruster Utility Advanced Hacking Suite Device Improved Sensor Array Storage Advanced Energy Well Processor Enhanced Optical Array Hackware Advanced Hacking Suite Protection Improved Utility Shielding Weapon Spear Energy Gun Backup Laser III Energy Cannon Warp Cannon Ballistic Gun Assault Rifle Launcher Heavy Rocket Launcher Impact Weapon Heavy Mace Slashing Weapon Makeshift Sword Piercing Weapon Spear Build | -11 -10 -10 -10 -9 -8 -7 -7 -7 -7 -7 -7 -6 -6 -6 -6 -6 -5 -5 -5 -5 -5 -5 -4 -4 -4 -4 -3 -3 -3 -3 -2 -1 ------- Run | Scr Mat Min Exi Min Mat Fac Was Fac Low Low Dat Pro Fac Low Low Zio Pro Fac Ext Cet Arc Hub Fac Upp Upp Zhi Pro Res Arm Lab Res Acc Slots Evolved 18 | . . . . . 4 2 . . . . . . 2 . . . . 2 . . . . 2 . . . . 2 . . 2 2 Power 1 | . . . . . . . . . . . . . . . . . . 1 . . . . . . . . . . . . . . Propulsion 7 | . . . . . 2 1 . . . . . . 1 . . . . 1 . . . . . . . . . 1 . . 1 . Utility 10 | . . . . . 2 1 . . . . . . 1 . . . . . . . . . 2 . . . . 1 . . 1 2 Weapon . | . . . . . . . . . . . . . . . . . . . . . . . . . . . . . . . . . Parts Attached 118 | 1 1 4 . 7 8 12 14 . 1 3 2 1 5 2 1 . . 8 9 1 2 2 6 . 3 4 . 5 7 6 1 2 Power 12 | . . . . . 1 . 1 . . . . . . . . . . 3 2 . . . . . 2 . . . 3 . . . Engine . | . . . . . . . . . . . . . . . . . . . . . . . . . . . . . . . . . Core 11 | . . . . . 1 . 1 . . . . . . . . . . 3 2 . . . . . 2 . . . 2 . . . Reactor 1 | . . . . . . . . . . . . . . . . . . . . . . . . . . . . . 1 . . . Propulsion 39 | . 1 2 . 1 4 2 11 . . 1 . 1 3 . 1 . . 3 1 . . . 2 . . 2 . 1 1 1 . 1 Treads 6 | . . 1 . 1 3 1 . . . . . . . . . . . . . . . . . . . . . . . . . . Leg 2 | . 1 1 . . . . . . . . . . . . . . . . . . . . . . . . . . . . . . Wheel . | . . . . . . . . . . . . . . . . . . . . . . . . . . . . . . . . . Hover . | . . . . . . . . . . . . . . . . . . . . . . . . . . . . . . . . . Flight 31 | . . . . . 1 1 11 . . 1 . 1 3 . 1 . . 3 1 . . . 2 . . 2 . 1 1 1 . 1 Utility 42 | . . 1 . . 3 5 2 . 1 . 2 . 1 1 . . . 2 4 . 2 1 4 . . 2 . 4 3 2 1 1 Device 14 | . . . . . 3 1 . . 1 . 1 . . 1 . . . . 1 . 1 1 . . . 1 . 1 2 . . . Storage 1 | . . . . . . . . . . . . . . . . . . . . . . . 1 . . . . . . . . . Processor 6 | . . 1 . . . 4 . . . . . . . . . . . 1 . . . . . . . . . . . . . . Hackware 7 | . . . . . . . 1 . . . . . 1 . . . . . . . . . 2 . . 1 . 1 . . . 1 Protection 14 | . . . . . . . 1 . . . 1 . . . . . . 1 3 . 1 . 1 . . . . 2 1 2 1 . Artifact . | . . . . . . . . . . . . . . . . . . . . . . . . . . . . . . . . . Weapon 25 | 1 . 1 . 6 . 5 . . . 2 . . 1 1 . . . . 2 1 . 1 . . 1 . . . . 3 . . Energy Gun 1 | . . . . . . . . . . . . . . . . . . . . . . . . . . . . . . 1 . . Energy Cannon 2 | . . . . . . . . . . . . . . . . . . . . . . . . . . . . . . 2 . . Ballistic Gun 5 | 1 . 1 . 3 . . . . . . . . . . . . . . . . . . . . . . . . . . . . Ballistic Cannon . | . . . . . . . . . . . . . . . . . . . . . . . . . . . . . . . . . Launcher 11 | . . . . 2 . 2 . . . 1 . . . 1 . . . . 2 1 . 1 . . 1 . . . . . . . Special Weapon . | . . . . . . . . . . . . . . . . . . . . . . . . . . . . . . . . . Impact Weapon 1 | . . . . 1 . . . . . . . . . . . . . . . . . . . . . . . . . . . . Slashing Weapon 1 | . . . . . . . . . . . . . 1 . . . . . . . . . . . . . . . . . . . Piercing Weapon 4 | . . . . . . 3 . . . 1 . . . . . . . . . . . . . . . . . . . . . . Special Melee Weapon . | . . . . . . . . . . . . . . . . . . . . . . . . . . . . . . . . . Unidentified Prototypes 8 | . . . . . . . . . . . . . 1 1 . . . . . . . . . . . 1 . . 1 4 . . Corrupted Parts 3 | . . 1 . 2 . . . . . . . . . . . . . . . . . . . . . . . . . . . . System Corruption 10 | . . 4 . 6 . . . . . . . . . . . . . . . . . . . . . . . . . . . . Parts Lost 8 | . . . . . . 1 . . . 1 1 1 . . . . . 3 . . . . . . . . . . 1 . . . Power 1 | . . . . . . . . . . . . . . . . . . 1 . . . . . . . . . . . . . . Propulsion 4 | . . . . . . . . . . 1 1 1 . . . . . 1 . . . . . . . . . . . . . . Utility 2 | . . . . . . . . . . . . . . . . . . 1 . . . . . . . . . . 1 . . . Weapon 1 | . . . . . . 1 . . . . . . . . . . . . . . . . . . . . . . . . . . Highest Loss Streak 3 | . . . . . . 1 . . . 1 1 1 . . . . . 3 . . . . . . . . . . 1 . . . To Critical Strikes . | . . . . . . . . . . . . . . . . . . . . . . . . . . . . . . . . . Average Slot Usage (%) 89 | . 42 64 71 71 61 75 92 100 100 99 100 98 99 99 100 100 100 93 89 94 94 94 88 90 90 88 90 86 88 92 91 85 Core 6 | . . . . . . . 6 7 7 7 7 7 6 6 6 6 6 5 6 11 11 11 10 10 10 10 10 9 7 4 4 3 Treads 4 | . . 1 14 26 33 30 2 . . . . . . . . . . . . . . . . . . . . . . . . . Leg 1 | . 28 26 14 1 . . . . . . . . . . . . . . . . . . . . . . . . . . . . Flight 29 | . . . . . . 5 31 38 38 37 38 36 39 37 37 37 37 37 38 38 38 38 32 30 30 30 30 29 30 31 29 27 Device 5 | . . . . . 9 7 3 . 7 7 5 7 6 5 6 6 6 4 1 5 5 5 5 5 5 3 5 6 9 9 8 7 Processor 10 | . . 10 14 14 9 23 26 23 23 23 17 15 13 12 12 12 12 11 9 5 5 5 5 5 5 5 5 4 4 4 4 3 Hackware 9 | . . . . . . . 3 7 7 7 7 7 12 12 12 12 12 11 11 11 11 11 15 15 15 15 15 13 13 13 12 11 Protection 6 | . . . . . . . 3 7 . . 5 7 6 6 6 6 6 5 11 11 10 11 10 10 10 10 10 9 7 7 12 11 Ballistic Gun 1 | . 14 24 28 8 9 . . . . . . . . . . . . . . . . . . . . . . . . . . . Launcher 1 | . . . . 9 . . . . . . . . . 4 6 6 6 5 . . . . . . . . . . . . . . Slashing Weapon 3 | . . . . . . . . . . . . . 5 6 6 6 6 5 5 5 5 5 5 5 5 5 5 4 4 4 4 3 Piercing Weapon 4 | . . . . . . 6 7 7 7 6 7 7 6 6 6 6 6 5 5 5 5 5 5 5 5 5 5 4 4 4 4 3 Naked Turns . | . . . . . . . . . . . . . . . . . . . . . . . . . . . . . . . . . Heaviest Build 49 | 2 2 3 3 3 4 5 13 13 11 16 14 14 14 21 21 21 21 21 32 27 27 34 30 30 37 30 30 32 31 47 49 49 Greatest Support 64 | 3 3 20 3 3 60 3 26 20 20 20 26 20 33 27 27 26 26 31 37 30 30 36 39 42 39 43 43 49 49 49 64 55 Greatest Overweight (x) 1 | . . . . . 1 1 . . . . . . . . . . . . 1 . . 1 . . . . . . . . . . Average Overweight (x) . | . . . . . . . . . . . . . . . . . . . . . . . . . . . . . . . . . Largest Inventory Capacity 8 | 8 5 5 5 5 5 5 5 5 5 5 5 5 5 5 5 5 5 5 5 5 5 5 5 5 5 5 5 5 5 5 5 5 Average Capacity 5 | 6 5 5 5 5 5 5 5 5 5 5 5 5 5 5 5 5 5 5 5 5 5 5 5 5 5 5 5 5 5 5 5 5 Most Carried 5 | 5 4 5 5 5 5 5 5 5 5 5 5 5 5 5 5 5 5 5 5 5 5 5 5 5 5 5 5 5 5 5 5 5 Average Carried 4 | 3 3 4 5 4 4 4 4 5 5 4 4 4 4 4 4 5 5 4 4 4 5 4 4 5 4 4 5 4 4 4 4 4 Final Capacity 5 | 5 5 5 5 5 5 5 5 5 5 5 5 5 5 5 5 5 5 5 5 5 5 5 5 5 5 5 5 5 5 5 5 5 Final Carried 5 | 3 4 5 5 5 5 5 5 5 5 4 5 5 5 4 5 5 5 3 5 5 5 5 5 5 5 5 5 5 5 5 5 5 Class Distribution -------------------- 30% | Hacker-Scout 27% | Hacker-Sprinter 19% | Mutant 7% | Commander-Sprinter 7% | Wizard-Sprinter 6% | Scavenger-Scout Dominant Class ---------------- Mutant | -10/Materials Mutant | -10/Mines Mutant | -10/Exiles Mutant | -9/Mines Mutant | -8/Materials Mutant | -7/Factory Scavenger-Sprinter | -7/Waste Scavenger-Sprinter | -7/Factory Scavenger-Scout | -7/Lower Caves Scavenger-Scout | -7/Lower Caves Scavenger-Scout | -7/Data Miner Scavenger-Scout | -6/Proximity Caves Hacker-Scout | -6/Factory Hacker-Scout | -6/Lower Caves Hacker-Scout | -6/Lower Caves Hacker-Scout | -6/Zion Hacker-Scout | -5/Proximity Caves Hacker-Scout | -5/Factory Commander-Sprinter | -5/Extension Commander-Sprinter | -5/Cetus Hacker-Sprinter | -5/Archives Hacker-Sprinter | -5/Hub_04(d) Wizard-Sprinter | -4/Factory Wizard-Sprinter | -4/Upper Caves Wizard-Sprinter | -4/Upper Caves Wizard-Sprinter | -4/Zhirov Wizard-Sprinter | -3/Proximity Caves Hacker-Sprinter | -3/Research Hacker-Scout | -3/Armory Hacker-Sprinter | -3/Lab Hacker-Scout | -2/Research Hacker-Scout | -1/Access Resources | -11 -10 -10 -10 -9 -8 -7 -7 -7 -7 -7 -7 -6 -6 -6 -6 -6 -5 -5 -5 -5 -5 -5 -4 -4 -4 -4 -3 -3 -3 -3 -2 -1 ----------- Run | Scr Mat Min Exi Min Mat Fac Was Fac Low Low Dat Pro Fac Low Low Zio Pro Fac Ext Cet Arc Hub Fac Upp Upp Zhi Pro Res Arm Lab Res Acc Matter Collected 1795 | 187 23 41 . 6 . 360 140 . 6 42 22 5 50 . 193 17 71 131 137 52 . 96 20 16 69 . . 111 . . . . Remotely . | . . . . . . . . . . . . . . . . . . . . . . . . . . . . . . . . . Salvage Created 2791 | . . . . 20 . 1011 203 . . 23 25 . 97 . 56 . 106 58 210 . 235 289 45 . 25 . . 180 . . . 208 Parts 169 | . . . . 1 . 66 19 . . 1 5 . 4 . . . . 3 9 . 23 15 1 . 8 . . 7 . . . 7 Haulers Intercepted 5 | . . . . . . 3 . . . . . . 1 . . . . . . . . . . . . . . . . . . 1 Recyclers Shooed 1 | . . . . . . 1 . . . . . . . . . . . . . . . . . . . . . . . . . . Parts Field Recycled . | . . . . . . . . . . . . . . . . . . . . . . . . . . . . . . . . . Retrieved Matter . | . . . . . . . . . . . . . . . . . . . . . . . . . . . . . . . . . Parts Self-Destructed 11 | . . . . . . . . . . 2 . . . . 6 . . . . . . . . . 3 . . . . . . . Prevented 1 | . . . . . . . . . . 1 . . . . . . . . . . . . . . . . . . . . . . Kills | -11 -10 -10 -10 -9 -8 -7 -7 -7 -7 -7 -7 -6 -6 -6 -6 -6 -5 -5 -5 -5 -5 -5 -4 -4 -4 -4 -3 -3 -3 -3 -2 -1 ------- Run | Scr Mat Min Exi Min Mat Fac Was Fac Low Low Dat Pro Fac Low Low Zio Pro Fac Ext Cet Arc Hub Fac Upp Upp Zhi Pro Res Arm Lab Res Acc Combat Hostiles Destroyed 30 | . . . . 1 . 9 . . . 2 . . . . 3 . 4 . 2 . . 4 . . 5 . . . . . . . Melee 5 | . . . . . . 3 . . . . . . . . . . . . 2 . . . . . . . . . . . . . Guns 1 | . . . . 1 . . . . . . . . . . . . . . . . . . . . . . . . . . . . AOE 24 | . . . . . . 6 . . . 2 . . . . 3 . 4 . . . . 4 . . 5 . . . . . . . Classes Destroyed 13 | . . . . 1 . 8 . . . . . . . . 1 . . 1 1 . . 1 . . . . . . . . . . Worker 3 | . . . . . . 3 . . . . . . . . . . . . . . . . . . . . . . . . . . Builder 7 | . . . . . . 6 . . . . . . . . . . . . . . . . . . . . . 1 . . . . Tunneler 1 | . . . . . . 1 . . . . . . . . . . . . . . . . . . . . . . . . . . Hauler 5 | . . . . . . 3 . . . . . . 1 . . . . . . . . . . . . . . . . . . 1 Recycler 5 | . . . . . . 3 . . . . . . . . . . . . . . . . . . . . . 1 . . . 1 Operator 8 | . . . . . . . . . . . . . . . . . . 1 . . 7 . . . . . . . . . . . Watcher 7 | . . . . . . 4 . . . . . . . . . . . 1 1 . . . 1 . . . . . . . . . Swarmer 8 | . . . . 1 . . . . . 2 . . . . . . . . . . . . . . 5 . . . . . . . Cutter 3 | . . . . . . . . . . . . . . . . . . . . . . 3 . . . . . . . . . . Grunt 14 | . . . . . . 8 . . . . . . . . 2 . 3 . . . . 1 . . . . . . . . . . Brawler 2 | . . . . . . . . . . . . . . . 1 . 1 . . . . . . . . . . . . . . . Sentry 2 | . . . . . . . . . . . . . . . . . . . 2 . . . . . . . . . . . . . Programmer 1 | . . . . . . 1 . . . . . . . . . . . . . . . . . . . . . . . . . . Enhanced Grunt 3 | . . . . . . . . . . . . . . . . . . . . . . 3 . . . . . . . . . . Wasp 8 | . . . . . . . 8 . . . . . . . . . . . . . . . . . . . . . . . . . Best Kill Streak 11 | . . . . 1 . 11 . . . 2 1 . 1 . 2 . 4 1 1 . 4 4 1 . 5 . . 1 . . . 2 Combat Bots Only 5 | . . . . 1 . 4 . . . 2 . . . . 2 . 4 . 1 . . 4 . . 5 . . . . . . . Max Kills in Single Turn 4 | . . . . 1 . 4 1 . . 2 1 . 1 . 1 . 1 1 1 . 1 3 1 . 2 . . 1 . . . 1 Gunslinging . | . . . . . . . . . . . . . . . . . . . . . . . . . . . . . . . . . Exploded 3 | . . . . . . 3 . . . 2 . . . . 1 . 1 . . . . 2 . . 2 . . . . . . . Melee 1 | . . . . . . 1 . . . . . . . . . . . . 1 . . . . . . . . . . . . . Uniques/NPCs Destroyed 1 | . . . . . . . . . . . 1 . . . . . . . . . . . . . . . . . . . . . Data Miner (-7/Data Miner) Combat | -11 -10 -10 -10 -9 -8 -7 -7 -7 -7 -7 -7 -6 -6 -6 -6 -6 -5 -5 -5 -5 -5 -5 -4 -4 -4 -4 -3 -3 -3 -3 -2 -1 -------- Run | Scr Mat Min Exi Min Mat Fac Was Fac Low Low Dat Pro Fac Low Low Zio Pro Fac Ext Cet Arc Hub Fac Upp Upp Zhi Pro Res Arm Lab Res Acc Damage Taken 2611 | . 65 202 . 46 137 365 . . . 94 95 53 . 73 18 . . 151 42 . . 260 45 195 77 . . 141 212 . 190 150 Core 551 | . 21 43 . . 15 97 . . . . 45 . . 16 . . . 19 . . . 16 23 102 31 . . 77 22 . 24 . Absorbed by Shields 40 | . . . . . . . . . . . . . . . . . . . 40 . . . . . . . . . . . . . Redirected to Shielding 42 | . . . . . . . . . . . . . . . . . . . . . . 11 . 13 18 . . . . . . . Regen/Repaired (Parts) 60 | . . . . . . . 12 . . . . . . . . . . . . . . . . . . . . . 48 . . . Core Remaining (%) 91 | 100 . . . 74 97 . . . . . . 79 . . . . 98 . . . . 96 . . . . 86 . . 86 98 100 Volleys Fired 50 | . . . . 5 . 4 . . . 1 . . . 1 14 . 8 . 1 1 . 4 . . 3 . . . . . . 8 Largest 2 | . . . . 2 . 1 . . . 1 . . . 1 1 . 1 . 1 1 . 1 . . 1 . . . . . . 1 Hottest 100 | . . . . 40 . 39 . . . 39 . . . 39 39 . 39 . 39 39 . 39 . . 39 . . . . . . 100 Shots Fired 56 | . . . 1 10 . 4 . . . 1 . . . 1 14 . 8 . 1 1 . 4 . . 3 . . . . . . 8 Gun 11 | . . . 1 10 . . . . . . . . . . . . . . . . . . . . . . . . . . . . Cannon 8 | . . . . . . . . . . . . . . . . . . . . . . . . . . . . . . . . 8 Launcher 37 | . . . . . . 4 . . . 1 . . . 1 14 . 8 . 1 1 . 4 . . 3 . . . . . . . Special . | . . . . . . . . . . . . . . . . . . . . . . . . . . . . . . . . . Kinetic 11 | . . . 1 10 . . . . . . . . . . . . . . . . . . . . . . . . . . . . Thermal 8 | . . . . . . . . . . . . . . . . . . . . . . . . . . . . . . . . 8 Explosive 37 | . . . . . . 4 . . . 1 . . . 1 14 . 8 . 1 1 . 4 . . 3 . . . . . . . Electromagnetic . | . . . . . . . . . . . . . . . . . . . . . . . . . . . . . . . . . Robot Hit Streak 3 | . . . . 3 . 3 . . . . . . . . . . . . . . . 1 . . . . . . . . . 1 Robot Miss Streak 5 | . . . . 5 . . . . . . . . . . . . . . . . . 1 . . . . . . . . . . Penetration Max . | . . . . . . . . . . . . . . . . . . . . . . . . . . . . . . . . . Secondary Targets . | . . . . . . . . . . . . . . . . . . . . . . . . . . . . . . . . . Shots Hit Robots 82 | . . . . 5 . 25 10 . . 2 1 . 1 . . . . 2 9 . 22 1 1 . . . . 2 . . . 1 Core Hits 112 | . . . . 1 . 29 8 . . 2 1 . 1 . 10 . 12 2 4 . 12 17 1 . 7 . . 2 . . . 3 Critical Kills . | . . . . . . . . . . . . . . . . . . . . . . . . . . . . . . . . . Critical Parts Destroyed 1 | . . . . 1 . . . . . . . . . . . . . . . . . . . . . . . . . . . . Critical Strikes 4 | . . . . 1 . 2 1 . . . . . . . . . . . . . . . . . . . . . . . . . Destroy 1 | . . . . 1 . . . . . . . . . . . . . . . . . . . . . . . . . . . . Impale 3 | . . . . . . 2 1 . . . . . . . . . . . . . . . . . . . . . . . . . Melee Attacks 279 | . . . . . . 33 10 . 4 3 8 . 16 2 40 4 12 15 13 3 34 6 21 1 . . . 15 22 7 6 4 Impact . | . . . . . . . . . . . . . . . . . . . . . . . . . . . . . . . . . Slashing 118 | . . . . . . . . . . . . . 2 2 23 4 11 15 3 2 8 1 9 . . . . 8 17 6 4 3 Piercing 161 | . . . . . . 33 10 . 4 3 8 . 14 . 17 . 1 . 10 1 26 5 12 1 . . . 7 5 1 2 1 Sneak Attacks 41 | . . . . . . 13 10 . . 2 1 . 1 . . . . 1 1 . 10 . . . . . . 2 . . . . Combat Hostiles 3 | . . . . . . . . . . 2 . . . . . . . . 1 . . . . . . . . . . . . . Follow-up Attacks 10 | . . . . . . . . . . . . . . . . . . . 2 . 8 . . . . . . . . . . . Damage Inflicted 8071 | . . 11 . 59 . 2439 604 . . 248 72 . 51 . 481 . 519 153 354 . 1298 733 45 . 572 . . 129 . . . 303 Guns 59 | . . . . 59 . . . . . . . . . . . . . . . . . . . . . . . . . . . . Cannons 303 | . . . . . . . . . . . . . . . . . . . . . . . . . . . . . . . . 303 Explosions 3678 | . . . . . . 1232 . . . 141 . . . . 481 . 519 . . . . 733 . . 572 . . . . . . . Melee 4020 | . . . . . . 1207 604 . . 107 72 . 51 . . . . 153 354 . 1298 . 45 . . . . 129 . . . . Ramming 11 | . . 11 . . . . . . . . . . . . . . . . . . . . . . . . . . . . . . Kinetic 59 | . . . . 59 . . . . . . . . . . . . . . . . . . . . . . . . . . . . Thermal 303 | . . . . . . . . . . . . . . . . . . . . . . . . . . . . . . . . 303 Explosive 3678 | . . . . . . 1232 . . . 141 . . . . 481 . 519 . . . . 733 . . 572 . . . . . . . Electromagnetic . | . . . . . . . . . . . . . . . . . . . . . . . . . . . . . . . . . Impact . | . . . . . . . . . . . . . . . . . . . . . . . . . . . . . . . . . Slashing 583 | . . . . . . . . . . . . . . . . . . 153 76 . 273 . . . . . . 81 . . . . Piercing 3437 | . . . . . . 1207 604 . . 107 72 . 51 . . . . . 278 . 1025 . 45 . . . . 48 . . . . Highest Corruption 10 | . . 4 4 10 . . . . . . . . . . . . . 1 1 1 1 . . . . . . . . . 1 . Average Corruption 1 | . . 4 4 9 . . . . . . . . . . . . . 1 1 1 1 . . . . . . . . . 1 . Corruption Purged 1 | . . . . . . . . . . . . . . . . . . . . . 1 . . . . . . . . . . . Corruption Blocked . | . . . . . . . . . . . . . . . . . . . . . . . . . . . . . . . . . Effects 30 | . . 1 4 7 . . . . . . . . . . . . . 5 9 2 1 . . . . . . . . . 1 . Message Errors 3 | . . . . 1 . . . . . . . . . . . . . . 2 . . . . . . . . . . . . . Matter Fused 8 | . . . 1 2 . . . . . . . . . . . . . 1 3 1 . . . . . . . . . . . . Heat Flow Errors 8 | . . 1 . 1 . . . . . . . . . . . . . 1 3 1 . . . . . . . . . . 1 . Energy Discharges 4 | . . . . 1 . . . . . . . . . . . . . 3 . . . . . . . . . . . . . . Data Loss (minor) 4 | . . . 2 2 . . . . . . . . . . . . . . . . . . . . . . . . . . . . Data Loss (major) 2 | . . . . . . . . . . . . . . . . . . . 1 . 1 . . . . . . . . . . . Misfires 1 | . . . 1 . . . . . . . . . . . . . . . . . . . . . . . . . . . . . Overload Shots . | . . . . . . . . . . . . . . . . . . . . . . . . . . . . . . . . . Overflow Damage 512 | . . . . . . 235 4 . . 4 . . . . . . . . 11 . 252 5 . . 1 . . . . . . . Projectiles . | . . . . . . . . . . . . . . . . . . . . . . . . . . . . . . . . . Explosions 89 | . . . . . . 83 . . . . . . . . . . . . . . . 5 . . 1 . . . . . . . Melee 423 | . . . . . . 152 4 . . 4 . . . . . . . . 11 . 252 . . . . . . . . . . . Knockbacks . | . . . . . . . . . . . . . . . . . . . . . . . . . . . . . . . . . Impact . | . . . . . . . . . . . . . . . . . . . . . . . . . . . . . . . . . Kinetic . | . . . . . . . . . . . . . . . . . . . . . . . . . . . . . . . . . Secondary . | . . . . . . . . . . . . . . . . . . . . . . . . . . . . . . . . . Self-Inflicted Damage 49 | . . . . . . . . . . . . . . . . . . . . . . 49 . . . . . . . . . . Shots 1 | . . . . . . . . . . . . . . . . . . . . . . 1 . . . . . . . . . . Rammed . | . . . . . . . . . . . . . . . . . . . . . . . . . . . . . . . . . Targets Rammed 8 | . . 8 . . . . . . . . . . . . . . . . . . . . . . . . . . . . . . Kicked 8 | . . 8 . . . . . . . . . . . . . . . . . . . . . . . . . . . . . . Crushed . | . . . . . . . . . . . . . . . . . . . . . . . . . . . . . . . . . Highest Temperature 271 | . . 253 . 189 . . 8 . . . 2 7 4 4 17 4 17 260 271 211 . 13 7 29 . . . . . . 61 20 Average Temperature 57 | . . 128 . 101 . . 5 . . . 1 4 4 4 6 4 7 126 99 106 . 4 7 18 . . . . . . 23 7 Received Heat Transfer 613 | . 36 114 . . 72 207 . . . . . 12 . 9 9 . . 9 4 . . 45 12 48 . . . 18 . . . 18 Siege Activations . | . . . . . . . . . . . . . . . . . . . . . . . . . . . . . . . . . Robots Corrupted . | . . . . . . . . . . . . . . . . . . . . . . . . . . . . . . . . . Combat Hostiles . | . . . . . . . . . . . . . . . . . . . . . . . . . . . . . . . . . Parts Fried . | . . . . . . . . . . . . . . . . . . . . . . . . . . . . . . . . . Impact Corruptions . | . . . . . . . . . . . . . . . . . . . . . . . . . . . . . . . . . Robots Melted . | . . . . . . . . . . . . . . . . . . . . . . . . . . . . . . . . . Combat Hostiles . | . . . . . . . . . . . . . . . . . . . . . . . . . . . . . . . . . Parts Melted 2 | . . . . . . . . . . . . . . . . . . . 2 . . . . . . . . . . . . . Heat Transferred 222 | . . . . . . . . . . . . . . . . . . . . . . . . . . . . . . . . 222 Parts Sabotaged . | . . . . . . . . . . . . . . . . . . . . . . . . . . . . . . . . . Parts Stolen . | . . . . . . . . . . . . . . . . . . . . . . . . . . . . . . . . . Parts Stripped . | . . . . . . . . . . . . . . . . . . . . . . . . . . . . . . . . . Power Chain Reactions . | . . . . . . . . . . . . . . . . . . . . . . . . . . . . . . . . . Missiles Intercepted . | . . . . . . . . . . . . . . . . . . . . . . . . . . . . . . . . . Alert | -11 -10 -10 -10 -9 -8 -7 -7 -7 -7 -7 -7 -6 -6 -6 -6 -6 -5 -5 -5 -5 -5 -5 -4 -4 -4 -4 -3 -3 -3 -3 -2 -1 ------- Run | Scr Mat Min Exi Min Mat Fac Was Fac Low Low Dat Pro Fac Low Low Zio Pro Fac Ext Cet Arc Hub Fac Upp Upp Zhi Pro Res Arm Lab Res Acc Peak Influence 638 | . 15 110 . 20 87 427 149 116 . . . . 69 . . . . 186 638 552 468 287 340 . . . . 113 595 . 78 185 Initial 218 | . . 5 . . 7 39 149 104 . . . . 28 . . . . 84 . 188 218 . 113 . . . . . 58 . . 55 Average 161 | . 2 61 . 17 40 279 149 114 . . . . 62 . . . . 69 202 383 156 209 227 . . . . 52 318 . 8 115 Maximum Alert Level 2 | . . . . . . 2 . . . . . . . . . . . . 2 2 2 1 1 . . . . . 2 . . . Low Security (%) 65 | 100 100 100 . 100 100 23 100 100 . . . . 100 . . . . 100 58 14 61 21 36 . . . . 100 40 . 100 100 Level 1 25 | . . . . . . 74 . . . . . . . . . . . . 23 38 23 78 63 . . . . . 19 . . . Level 2 8 | . . . . . . 1 . . . . . . . . . . . . 18 47 14 . . . . . . . 40 . . . Level 3 . | . . . . . . . . . . . . . . . . . . . . . . . . . . . . . . . . . Level 4 . | . . . . . . . . . . . . . . . . . . . . . . . . . . . . . . . . . Level 5 . | . . . . . . . . . . . . . . . . . . . . . . . . . . . . . . . . . High Security . | . . . . . . . . . . . . . . . . . . . . . . . . . . . . . . . . . Max Security . | . . . . . . . . . . . . . . . . . . . . . . . . . . . . . . . . . Squads Dispatched 28 | . 1 . . . 3 4 . . . . . . 1 . . . . 5 2 . . 6 3 . . . . . . . 2 1 Investigation 13 | . . . . . 1 1 . . . . . . . . . . . 3 . . . 4 2 . . . . . . . 1 1 Extermination 5 | . . . . . . 1 . . . . . . 1 . . . . 1 . . . . 1 . . . . . . . 1 . Reinforcement 10 | . 1 . . . 2 2 . . . . . . . . . . . 1 2 . . 2 . . . . . . . . . . Assault . | . . . . . . . . . . . . . . . . . . . . . . . . . . . . . . . . . Garrison . | . . . . . . . . . . . . . . . . . . . . . . . . . . . . . . . . . Intercept . | . . . . . . . . . . . . . . . . . . . . . . . . . . . . . . . . . Searches Triggered . | . . . . . . . . . . . . . . . . . . . . . . . . . . . . . . . . . Construction Impeded 2 | . . . . . . 1 . . . . . . . . . . . . 1 . . . . . . . . . . . . . Haulers Reinforced . | . . . . . . . . . . . . . . . . . . . . . . . . . . . . . . . . . Active Scanning Responses . | . . . . . . . . . . . . . . . . . . . . . . . . . . . . . . . . . Cargo Convoy Interrupts . | . . . . . . . . . . . . . . . . . . . . . . . . . . . . . . . . . Stealth | -11 -10 -10 -10 -9 -8 -7 -7 -7 -7 -7 -7 -6 -6 -6 -6 -6 -5 -5 -5 -5 -5 -5 -4 -4 -4 -4 -3 -3 -3 -3 -2 -1 --------- Run | Scr Mat Min Exi Min Mat Fac Was Fac Low Low Dat Pro Fac Low Low Zio Pro Fac Ext Cet Arc Hub Fac Upp Upp Zhi Pro Res Arm Lab Res Acc Distress Signals 10 | . . . . . 1 1 . . . . . . . . . . . . 2 1 . 1 1 . . . . 2 1 . . . Communications Jammed . | . . . . . . . . . . . . . . . . . . . . . . . . . . . . . . . . . Distress Signals . | . . . . . . . . . . . . . . . . . . . . . . . . . . . . . . . . . Times Spotted 246 | . 3 9 . 4 10 28 . . . 5 4 2 1 12 12 . 7 4 28 8 11 24 10 11 4 . . 8 24 . 8 9 Peak Tracking Total 32 | . 4 3 . 3 10 8 . . . 4 4 4 1 10 4 . 4 2 4 5 1 32 6 9 5 . . 9 12 . 8 7 Tactical Retreats 36 | . . 3 . . . 6 . . . 3 . 1 . 4 4 . 1 1 1 . . 2 3 2 . . . . 5 . . . Traps | -11 -10 -10 -10 -9 -8 -7 -7 -7 -7 -7 -7 -6 -6 -6 -6 -6 -5 -5 -5 -5 -5 -5 -4 -4 -4 -4 -3 -3 -3 -3 -2 -1 ------- Run | Scr Mat Min Exi Min Mat Fac Was Fac Low Low Dat Pro Fac Low Low Zio Pro Fac Ext Cet Arc Hub Fac Upp Upp Zhi Pro Res Arm Lab Res Acc Traps Triggered 8 | . 1 . . . 1 2 . . . . . . . . . . . 1 . . . . . . . . . 1 1 . 1 . Indirectly . | . . . . . . . . . . . . . . . . . . . . . . . . . . . . . . . . . Trap Hack Attempts . | . . . . . . . . . . . . . . . . . . . . . . . . . . . . . . . . . Triggered . | . . . . . . . . . . . . . . . . . . . . . . . . . . . . . . . . . Disarmed 6 | . . . . . . . . . . . . . . . . . . . 6 . . . . . . . . . . . . . Reprogrammed . | . . . . . . . . . . . . . . . . . . . . . . . . . . . . . . . . . Reused . | . . . . . . . . . . . . . . . . . . . . . . . . . . . . . . . . . Traps Extracted . | . . . . . . . . . . . . . . . . . . . . . . . . . . . . . . . . . Installed . | . . . . . . . . . . . . . . . . . . . . . . . . . . . . . . . . . Triggered 4 | . . . . . . . . . . 4 . . . . . . . . . . . . . . . . . . . . . . Machines | -11 -10 -10 -10 -9 -8 -7 -7 -7 -7 -7 -7 -6 -6 -6 -6 -6 -5 -5 -5 -5 -5 -5 -4 -4 -4 -4 -3 -3 -3 -3 -2 -1 ---------- Run | Scr Mat Min Exi Min Mat Fac Was Fac Low Low Dat Pro Fac Low Low Zio Pro Fac Ext Cet Arc Hub Fac Upp Upp Zhi Pro Res Arm Lab Res Acc Machines Disabled 28 | . . . . . . 5 . . . . . . . . . . . 1 5 3 2 4 . . . . . . 6 2 . . Max in Single Turn 4 | . . . . . . 2 . . . . . . . . . . . 1 1 2 . 4 . . . . . . 1 1 . . Garrison Access 3 | . . . . . . . . . . . . . . . . . . . . . . . 1 . . . . . . . 1 1 Network Hub 1 | . . . . . . . . . . . . . . . . . . . . . . 1 . . . . . . . . . . Machines Sabotaged 1 | . . . . . . . . . . . . . . . . . . . . . . 1 . . . . . . . . . . Overloaded Fab Kills . | . . . . . . . . . . . . . . . . . . . . . . . . . . . . . . . . . Hacking | -11 -10 -10 -10 -9 -8 -7 -7 -7 -7 -7 -7 -6 -6 -6 -6 -6 -5 -5 -5 -5 -5 -5 -4 -4 -4 -4 -3 -3 -3 -3 -2 -1 --------- Run | Scr Mat Min Exi Min Mat Fac Was Fac Low Low Dat Pro Fac Low Low Zio Pro Fac Ext Cet Arc Hub Fac Upp Upp Zhi Pro Res Arm Lab Res Acc Machines Accessed 67 | . . 1 2 . 2 5 . 1 . . 3 . 5 1 . . . 8 10 1 . 4 5 . . 4 . 3 4 1 2 5 Terminals 40 | . . . . . 2 2 . 1 . . . . 4 . . . . 5 10 1 . 4 2 . . . . 3 3 . . 3 Fabricators 9 | . . . . . . 2 . . . . . . . . . . . 3 . . . . 2 . . . . . . . 1 1 Repair Stations 1 | . . . . . . . . . . . . . . . . . . . . . . . . . . . . . 1 . . . Recycling Units 1 | . . . . . . 1 . . . . . . . . . . . . . . . . . . . . . . . . . . Scanalyzers 1 | . . . . . . . . . . . . . 1 . . . . . . . . . . . . . . . . . . . Garrison Access 3 | . . . . . . . . . . . . . . . . . . . . . . . 1 . . . . . . . 1 1 Total Hacks 258 | . . 1 2 . 6 12 . 2 . . 26 . 19 8 . . . 31 34 3 . 9 21 . . 13 . 22 21 1 3 24 Successful 168 | . . 1 2 . 2 3 . 1 . . 26 . 5 8 . . . 19 20 1 . 5 17 . . 13 . 14 12 1 3 15 Failed 90 | . . . . . 4 9 . 1 . . . . 14 . . . . 12 14 2 . 4 4 . . . . 8 9 . . 9 Catastrophic 16 | . . . . . 2 2 . . . . . . 5 . . . . 3 2 1 . 1 . . . . . . . . . . Database Lockouts . | . . . . . . . . . . . . . . . . . . . . . . . . . . . . . . . . . Manual 109 | . . . 1 . 6 6 . 1 . . . . 7 . . . . 15 26 1 . 9 10 . . . . 7 11 . 1 8 Terminals 163 | . . . . . 6 7 . 2 . . . . 15 . . . . 19 34 3 . 9 12 . . . . 22 18 . . 16 Fabricators 31 | . . . . . . 4 . . . . . . . . . . . 12 . . . . 7 . . . . . . . 2 6 Repair Stations 3 | . . . . . . . . . . . . . . . . . . . . . . . . . . . . . 3 . . . Recycling Units 1 | . . . . . . 1 . . . . . . . . . . . . . . . . . . . . . . . . . . Scanalyzers 4 | . . . . . . . . . . . . . 4 . . . . . . . . . . . . . . . . . . . Garrison Access 5 | . . . . . . . . . . . . . . . . . . . . . . . 2 . . . . . . . 1 2 Terminal Hacks 101 | . . 1 2 . 1 1 . . . . 26 . 2 8 . . . 6 15 1 . 1 5 . . 13 . 9 4 1 . 5 Record 21 | . . . 1 . . . . . . . 6 . . 8 . . . . . . . . . . . 5 . . . 1 . . Part Schematic 17 | . . . . . . . . . . . 11 . . . . . . 1 . . . . 1 . . 4 . . . . . . Robot Schematic 6 | . . . . . . . . . . . 6 . . . . . . . . . . . . . . . . . . . . . Prototype ID Bank 8 | . . . . . . . . . . . 3 . 1 . . . . . . . . . . . . 4 . . . . . . Open Door 6 | . . 1 . . . . . . . . . . . . . . . 1 2 1 . . . . . . . . . . . 1 Level Access Points 1 | . . . . . 1 . . . . . . . . . . . . . . . . . . . . . . . . . . . Branch Access Points 5 | . . . . . . 1 . . . . . . 1 . . . . 1 . . . . 1 . . . . 1 . . . . Emergency Access Points 4 | . . . . . . . . . . . . . . . . . . 2 . . . . . . . . . 1 . . . 1 Alert Level 6 | . . . . . . . . . . . . . . . . . . . 3 . . . 1 . . . . 1 . . . 1 Unreport Threat 6 | . . . . . . . . . . . . . . . . . . . 5 . . 1 . . . . . . . . . . Locate Traps 6 | . . . . . . . . . . . . . . . . . . 1 . . . . 1 . . . . 2 1 . . 1 Disarm Traps 1 | . . . . . . . . . . . . . . . . . . . 1 . . . . . . . . . . . . . Patrol Status 2 | . . . . . . . . . . . . . . . . . . . . . . . . . . . . 1 1 . . . Recall Reinforcements 3 | . . . . . . . . . . . . . . . . . . . 3 . . . . . . . . . . . . . Registered Prototypes 2 | . . . . . . . . . . . . . . . . . . . . . . . . . . . . 1 . . . 1 Zone Layout 6 | . . . . . . . . . . . . . . . . . . . 1 . . . 1 . . . . 2 2 . . . EX-Prototype ID Bank 1 | . . . 1 . . . . . . . . . . . . . . . . . . . . . . . . . . . . . Fabricator Hacks 15 | . . . . . . . . . . . . . . . . . . 5 . . . . 5 . . . . . . . 1 4 Load Schematic 9 | . . . . . . . . . . . . . . . . . . 3 . . . . 3 . . . . . . . 1 2 Build 6 | . . . . . . . . . . . . . . . . . . 2 . . . . 2 . . . . . . . . 2 Repair Station Hacks 2 | . . . . . . . . . . . . . . . . . . . . . . . . . . . . . 2 . . . Scan Component 1 | . . . . . . . . . . . . . . . . . . . . . . . . . . . . . 1 . . . Repair 1 | . . . . . . . . . . . . . . . . . . . . . . . . . . . . . 1 . . . Recycling Unit Hacks 1 | . . . . . . 1 . . . . . . . . . . . . . . . . . . . . . . . . . . Retrieve Components 1 | . . . . . . 1 . . . . . . . . . . . . . . . . . . . . . . . . . . Scanalyzer 2 | . . . . . . . . . . . . . 2 . . . . . . . . . . . . . . . . . . . Insert Component 2 | . . . . . . . . . . . . . 2 . . . . . . . . . . . . . . . . . . . Garrison Access Hacks 3 | . . . . . . . . . . . . . . . . . . . . . . . 1 . . . . . . . 1 1 Seal Access 3 | . . . . . . . . . . . . . . . . . . . . . . . 1 . . . . . . . 1 1 Unauthorized Hacks 44 | . . . . . 1 1 . 1 . . . . 1 . . . . 8 5 . . 4 6 . . . . 5 6 . 1 5 Terminals 39 | . . . . . 1 1 . 1 . . . . 1 . . . . 7 5 . . 4 4 . . . . 5 6 . . 4 Track 6 | . . . . . . . . . . . . . . . . . . 2 . . . . 1 . . . . 1 2 . . . Assimilate 4 | . . . . . . 1 . . . . . . . . . . . . . . . . 1 . . . . . . . . 2 Botnet 15 | . . . . . 1 . . 1 . . . . 1 . . . . 3 4 . . . 1 . . . . 2 1 . . 1 Disrupt 5 | . . . . . . . . . . . . . . . . . . 1 . . . . . . . . . 1 3 . . . Operators 5 | . . . . . . . . . . . . . . . . . . 1 1 . . . 1 . . . . 1 . . . 1 Sabotage 4 | . . . . . . . . . . . . . . . . . . . . . . 4 . . . . . . . . . . Fabricators 5 | . . . . . . . . . . . . . . . . . . 1 . . . . 2 . . . . . . . 1 1 Prioritize 3 | . . . . . . . . . . . . . . . . . . 1 . . . . 1 . . . . . . . . 1 Recompile 2 | . . . . . . . . . . . . . . . . . . . . . . . 1 . . . . . . . 1 . Repair Stations . | . . . . . . . . . . . . . . . . . . . . . . . . . . . . . . . . . Recycling Units . | . . . . . . . . . . . . . . . . . . . . . . . . . . . . . . . . . Scanalyzers . | . . . . . . . . . . . . . . . . . . . . . . . . . . . . . . . . . Garrison Access . | . . . . . . . . . . . . . . . . . . . . . . . . . . . . . . . . . Data Cores Recovered 1 | . . . . . . . . . . . . . . . . . . 1 . . . . . . . . . . . . . . Used . | . . . . . . . . . . . . . . . . . . . . . . . . . . . . . . . . . Hacking Detections 35 | . . . . . 2 4 . 1 . . . . 5 . . . . 7 3 1 . 1 3 . . . . 2 3 . . 3 Full Trace Events 6 | . . . . . . 1 . . . . . . . . . . . 3 . . . . 1 . . . . . . . . 1 Feedback Events 1 | . . . . . . . . . . . . . . . . . . 1 . . . . . . . . . . . . . . Corruption 1 | . . . . . . . . . . . . . . . . . . 1 . . . . . . . . . . . . . . Feedback Blocked . | . . . . . . . . . . . . . . . . . . . . . . . . . . . . . . . . . Robot Schematics Acquired 8 | . . . . . . . . . . . 6 . . . . 2 . . . . . . . . . . . . . . . . Robots Built . | . . . . . . . . . . . . . . . . . . . . . . . . . . . . . . . . . Authchips . | . . . . . . . . . . . . . . . . . . . . . . . . . . . . . . . . . Time . | . . . . . . . . . . . . . . . . . . . . . . . . . . . . . . . . . Total Robot Build Rating . | . . . . . . . . . . . . . . . . . . . . . . . . . . . . . . . . . Part Schematics Acquired 30 | . . . . . . . . . . . 11 . . . . 13 . 1 . . . . 1 . . 4 . . . . . . Parts Built 6 | . . . . . . . . . . . . . . . . . . 2 . . . . 2 . . . . . . . . 2 Authchips 2 | . . . . . . . . . . . . . . . . . . . . . . . 1 . . . . . . . . 1 Time 311 | . . . . . . . . . . . . . . . . . . 143 . . . . 84 . . . . . . . . 84 Total Part Build Rating 33 | . . . . . . . . . . . . . . . . . . 9 . . . . 12 . . . . . . . . 12 Parts Repaired 1 | . . . . . . . . . . . . . . . . . . . . . . . . . . . . . 1 . . . Time 25 | . . . . . . . . . . . . . . . . . . . . . . . . . . . . . 25 . . . Parts Recycled . | . . . . . . . . . . . . . . . . . . . . . . . . . . . . . . . . . Recycled Matter . | . . . . . . . . . . . . . . . . . . . . . . . . . . . . . . . . . Retrieved Matter . | . . . . . . . . . . . . . . . . . . . . . . . . . . . . . . . . . Retrieved Components 2 | . . . . . . 2 . . . . . . . . . . . . . . . . . . . . . . . . . . Parts Scanalyzed . | . . . . . . . . . . . . . . . . . . . . . . . . . . . . . . . . . Part Schematics Acquired . | . . . . . . . . . . . . . . . . . . . . . . . . . . . . . . . . . Parts Damaged . | . . . . . . . . . . . . . . . . . . . . . . . . . . . . . . . . . Bothacking | -11 -10 -10 -10 -9 -8 -7 -7 -7 -7 -7 -7 -6 -6 -6 -6 -6 -5 -5 -5 -5 -5 -5 -4 -4 -4 -4 -3 -3 -3 -3 -2 -1 ------------ Run | Scr Mat Min Exi Min Mat Fac Was Fac Low Low Dat Pro Fac Low Low Zio Pro Fac Ext Cet Arc Hub Fac Upp Upp Zhi Pro Res Arm Lab Res Acc Used RIF Installer . | . . . . . . . . . . . . . . . . . . . . . . . . . . . . . . . . . Robots Hacked . | . . . . . . . . . . . . . . . . . . . . . . . . . . . . . . . . . Non-combat . | . . . . . . . . . . . . . . . . . . . . . . . . . . . . . . . . . Combat . | . . . . . . . . . . . . . . . . . . . . . . . . . . . . . . . . . Robot Hacks Applied . | . . . . . . . . . . . . . . . . . . . . . . . . . . . . . . . . . Relay Couplers Released . | . . . . . . . . . . . . . . . . . . . . . . . . . . . . . . . . . Fabnet Peak Effective % . | . . . . . . . . . . . . . . . . . . . . . . . . . . . . . . . . . Robots Rewired 20 | . . . . . . . . . . . . . . . . . . . 20 . . . . . . . . . . . . . Allies Hacked 1 | . . . . . . . . . . . . . . . . . . . . . . . 1 . . . . . . . . . Hacks Repelled . | . . . . . . . . . . . . . . . . . . . . . . . . . . . . . . . . . Allies | -11 -10 -10 -10 -9 -8 -7 -7 -7 -7 -7 -7 -6 -6 -6 -6 -6 -5 -5 -5 -5 -5 -5 -4 -4 -4 -4 -3 -3 -3 -3 -2 -1 -------- Run | Scr Mat Min Exi Min Mat Fac Was Fac Low Low Dat Pro Fac Low Low Zio Pro Fac Ext Cet Arc Hub Fac Upp Upp Zhi Pro Res Arm Lab Res Acc Total Allies 53 | . . . . . . 1 20 . . . . . . 2 . . . . 22 5 . . 1 . . . . . . . . 2 Largest Group 20 | . . . . . . 1 20 . . . . . . 2 . . . . 12 10 10 6 1 . . . . . . . . 1 Highest-Rated Group 648 | . . . . . . 26 480 . . . . . . 62 . . . . 451 648 648 462 26 . . . . . . . . 45 Highest-Rated Ally 159 | . . . . . . 26 35 . . . . . . 31 . . . . 159 141 96 96 26 . . . . . . . . 45 Total Orders 2 | . . . . . . . . . . . . . . . . . . . . . 2 . . . . . . . . . . . ROAM 1 | . . . . . . . . . . . . . . . . . . . . . 1 . . . . . . . . . . . FOLLOW 1 | . . . . . . . . . . . . . . . . . . . . . 1 . . . . . . . . . . . Ally Attacks 309 | . . . . . . . . . . . . . . 16 . . . . 196 55 36 6 . . . . . . . . . . Total Damage 7861 | . . . . . . . . . . . . . . 234 . . . . 5061 1172 1037 357 . . . . . . . . . . Kills 60 | . . . . . . . . . . . . . . 1 . . . . 42 11 6 . . . . . . . . . . . Allies Corrupted . | . . . . . . . . . . . . . . . . . . . . . . . . . . . . . . . . . Allies Melted . | . . . . . . . . . . . . . . . . . . . . . . . . . . . . . . . . . Intel | -11 -10 -10 -10 -9 -8 -7 -7 -7 -7 -7 -7 -6 -6 -6 -6 -6 -5 -5 -5 -5 -5 -5 -4 -4 -4 -4 -3 -3 -3 -3 -2 -1 ------- Run | Scr Mat Min Exi Min Mat Fac Was Fac Low Low Dat Pro Fac Low Low Zio Pro Fac Ext Cet Arc Hub Fac Upp Upp Zhi Pro Res Arm Lab Res Acc Robot Analysis Total 131 | . . . . . . . . . . . 131 . . . . . . . . . . . . . . . . . . . . . Derelict Logs Recovered 10 | . . 1 . . . . . . . 1 . 1 . . 3 2 . . . . . . . 1 1 . . . . . . . Drone Launches . | . . . . . . . . . . . . . . . . . . . . . . . . . . . . . . . . . Drone Recoveries . | . . . . . . . . . . . . . . . . . . . . . . . . . . . . . . . . . Exploration | -11 -10 -10 -10 -9 -8 -7 -7 -7 -7 -7 -7 -6 -6 -6 -6 -6 -5 -5 -5 -5 -5 -5 -4 -4 -4 -4 -3 -3 -3 -3 -2 -1 ------------- Run | Scr Mat Min Exi Min Mat Fac Was Fac Low Low Dat Pro Fac Low Low Zio Pro Fac Ext Cet Arc Hub Fac Upp Upp Zhi Pro Res Arm Lab Res Acc Turns Passed 10924 | 5 33 361 104 150 292 1150 108 30 189 182 60 238 363 355 525 200 382 844 1084 257 2088 147 399 83 156 42 64 104 184 173 346 226 Spaces Moved 14466 | 1 61 646 207 50 383 1745 186 114 616 568 111 355 724 448 886 765 609 589 1286 159 177 217 588 398 648 150 316 230 505 209 208 311 Core 3105 | 1 61 645 207 50 382 1745 14 . . . . . . . . . . . . . . . . . . . . . . . . . Treads 2 | . . 1 . . 1 . . . . . . . . . . . . . . . . . . . . . . . . . . . Legs . | . . . . . . . . . . . . . . . . . . . . . . . . . . . . . . . . . Wheels . | . . . . . . . . . . . . . . . . . . . . . . . . . . . . . . . . . Hover . | . . . . . . . . . . . . . . . . . . . . . . . . . . . . . . . . . Flight 11359 | . . . . . . . 172 114 616 568 111 355 724 448 886 765 609 589 1286 159 177 217 588 398 648 150 316 230 505 209 208 311 Fastest Speed 5 | 50 50 50 50 50 50 50 23 26 26 26 24 26 21 25 25 25 25 20 18 20 20 18 18 17 20 20 20 17 17 17 5 14 Average Speed 28 | 50 50 50 50 50 54 51 28 26 26 26 25 26 25 25 25 25 25 23 22 20 20 20 19 19 20 20 20 18 17 17 16 15 Slowest Speed 170 | 50 50 170 50 50 166 100 50 26 26 29 26 26 26 25 25 25 25 26 97 20 20 101 21 20 20 20 20 20 20 17 17 17 Overloaded Moves 42 | . . . . . . . . . . . . . . . . . . . . . . . . 34 . . . . . . 8 . Propulsion Burnouts . | . . . . . . . . . . . . . . . . . . . . . . . . . . . . . . . . . Robots Hopped 51 | . . . . . . . . 2 . 2 1 . 1 2 . . . . 10 . . 4 9 1 . . . 15 . . 1 3 Cave-ins Triggered . | . . . . . . . . . . . . . . . . . . . . . . . . . . . . . . . . . Teleports 1 | . . . . . . . . . . . . . . . . . . . . . . . . . . . . . 1 . . . Exploration Rate (%) 52 | 2 19 86 60 19 35 50 86 5 76 61 81 56 10 57 79 83 55 23 90 77 91 45 22 72 72 61 56 17 50 96 13 11 Regions Visited 32 Branch Regions 21 Pre-discovered Areas 33 | . . 1 1 . . . . . . . 24 . . . 2 1 . . . . . . . 1 . 3 . . . . . . Known Exits Taken 18 | . . 1 1 1 1 . . 1 1 1 1 1 1 1 1 1 1 1 . . . 1 1 . . . . 1 . . . . Unknown Exits Taken 12 | 1 1 . . . . . . . . . . . . . . . . . 1 1 1 . . 1 1 1 1 . 1 1 1 . Scrap Searched 23 | . . 3 . . . . . . 2 2 . 1 . 2 3 3 . . . . . . . 1 5 . 1 . . . . . Spaces Dug 165 | . . . . . . 6 . . 3 1 . . 13 2 44 . 11 12 22 . . 5 14 1 . . . 10 11 . 6 4 Terrain Destroyed 506 | . . . . . . 46 . . 3 18 . . 13 19 207 . 58 12 22 5 . 26 14 1 30 . . 10 11 . 6 5 Melee 132 | . . . . . . 6 . . 3 1 . . 13 2 33 . 11 12 1 . . 5 14 1 . . . 10 11 . 6 3 Projectile 2 | . . . . . . . . . . . . . . . . . . . . . . . . . . . . . . . . 2 AOE 372 | . . . . . . 40 . . . 17 . . . 17 174 . 47 . 21 5 . 21 . . 30 . . . . . . . Terrain Rammed . | . . . . . . . . . . . . . . . . . . . . . . . . . . . . . . . . . Walls Destroyed . | . . . . . . . . . . . . . . . . . . . . . . . . . . . . . . . . . Machines Disabled . | . . . . . . . . . . . . . . . . . . . . . . . . . . . . . . . . . Actions | -11 -10 -10 -10 -9 -8 -7 -7 -7 -7 -7 -7 -6 -6 -6 -6 -6 -5 -5 -5 -5 -5 -5 -4 -4 -4 -4 -3 -3 -3 -3 -2 -1 --------- Run | Scr Mat Min Exi Min Mat Fac Was Fac Low Low Dat Pro Fac Low Low Zio Pro Fac Ext Cet Arc Hub Fac Upp Upp Zhi Pro Res Arm Lab Res Acc Total 20770 | 8 62 681 206 163 468 1945 228 111 637 593 128 499 881 684 1132 768 818 1276 2062 380 2189 303 842 399 670 161 315 260 581 338 510 472 Wait 5743 | . . 17 . 100 69 138 1 . 17 21 5 143 132 232 196 . 191 660 663 217 1983 78 235 2 15 . . 25 46 110 296 151 Move 14338 | . 60 645 206 49 382 1745 185 109 615 563 108 354 721 443 885 764 608 588 1266 158 176 209 569 395 647 149 315 201 504 208 205 306 Hop 45 | . . . . . . . . 2 . 2 1 . 1 2 . . . . 9 . . 3 9 1 . . . 13 . . 1 1 Pick Up 36 | . 1 3 . 1 2 3 3 . . . 3 1 3 . 1 . . 1 4 . . . 2 . . 2 . 1 1 2 1 1 Fast Attach 62 | . 1 3 . . 5 10 6 . . . . . 2 2 1 . . 3 3 . 2 . 4 . 1 4 . 2 6 6 . 1 Attach 33 | . . . . 1 3 2 4 . . 1 . 1 2 1 . . . 4 3 1 . 1 2 . 1 . . 2 1 1 1 1 Detach 19 | 1 . . . . 2 3 3 . . . . . . . . . . 2 4 1 . 1 . . 1 . . 1 . . . . Swap 27 | 1 . 1 . 6 . . 4 . 1 2 2 . 1 . . . . 1 3 . . 1 . . 1 1 . 1 1 . . . Drop 71 | 6 . 4 . 1 5 7 12 . . . 1 . 3 1 1 . . 2 7 . 2 1 4 . 1 5 . 1 2 5 . . Fire 50 | . . . . 5 . 4 . . . 1 . . . 1 14 . 8 . 1 1 . 4 . . 3 . . . . . . 8 Melee 246 | . . . . . . 33 10 . 4 3 8 . 16 2 34 4 11 15 10 2 26 5 17 1 . . . 13 17 6 6 3 Ram . | . . . . . . . . . . . . . . . . . . . . . . . . . . . . . . . . . Kick 8 | . . 8 . . . . . . . . . . . . . . . . . . . . . . . . . . . . . . Crush . | . . . . . . . . . . . . . . . . . . . . . . . . . . . . . . . . . Escape Stasis . | . . . . . . . . . . . . . . . . . . . . . . . . . . . . . . . . . Rewire 92 | . . . . . . . . . . . . . . . . . . . 89 . . . . . . . . . 3 . . . Trap . | . . . . . . . . . . . . . . . . . . . . . . . . . . . . . . . . . Miscellaneous . | . . . . . . . . . . . . . . . . . . . . . . . . . . . . . . . . . Route ------- -11/Scrapyard -10/Materials -10/Mines (discovered 3 exits: *Mat x2 / *Exi) -10/Exiles -9/Mines -8/Materials (discovered 3 exits: *Fac x3) -7/Factory (discovered 4 exits: *Fac / Sto / *Low x2) -7/Waste -7/Factory -7/Lower Caves -7/Lower Caves -7/Data Miner -6/Proximity Caves -6/Factory (discovered 3 exits: Fac / *Low x2) -6/Lower Caves -6/Lower Caves (discovered 2 exits: *Fac / *Zio) -6/Zion -5/Proximity Caves -5/Factory (discovered 6 exits: Fac x2 / Upp x2 / *Ext x2) -5/Extension (discovered 2 exits: *Fac / *Cet) -5/Cetus -5/Archives (discovered 3 exits: *Fac / *Hub x2) -5/Hub_04(d) (discovered 3 exits: *Fac x3) -4/Factory (discovered 2 exits: *Upp x2) -4/Upper Caves -4/Upper Caves (discovered 2 exits: *Res / *Zhi) -4/Zhirov -3/Proximity Caves -3/Research (discovered 3 exits: *Arm / Qua x2) -3/Armory (discovered 2 exits: Res / *Lab) -3/Lab -2/Research -1/Access To Epsilon Eridani History --------- Turn | Location | Event 6 | -11/Scrapyard | Discovered new exit (range 0) 6 | -11/Scrapyard | Entered Materials 33 | -10/Materials | Discovered new exit (range 14) 39 | -10/Materials | Entered Mines 219 | -10/Mines | Learned location of Storage (-7) 221 | -10/Mines | Discovered new exit (range 5) 225 | -10/Mines | Identified exit to Materials 312 | -10/Mines | Build established: Mutant 343 | -10/Mines | Met a Derelict who couldn't figure out how to use a Trap Extractor 382 | -10/Mines | Learned Materials emergency access door positions 384 | -10/Mines | Discovered exit to Materials (range 7) 397 | -10/Mines | Deemed a non-threat by the Exiles lab entrance 398 | -10/Mines | Discovered new exit (range 5) 399 | -10/Mines | Identified exit to Exiles 400 | -10/Mines | Entered Exiles 413 | -10/Exiles | Met 8R-AWN 421 | -10/Exiles | Met EX-HEX 435 | -10/Exiles | Met EX-BIN 441 | -10/Exiles | Aligned with FarCom system 442 | -10/Exiles | Given EX-Vault access code 454 | -10/Exiles | Opened EX-Vault 465 | -10/Exiles | Warned to stay clear of 0b10 Research branches 475 | -10/Exiles | Exiles lab attacked by MAIN.C 485 | -10/Exiles | Learned location of Zion (-6) 500 | -10/Exiles | Discovered new exit (range 10) 503 | -10/Exiles | Identified exit to Mines 504 | -10/Exiles | Entered Mines 505 | -9/Mines | Assembled infested the area 510 | -9/Mines | Assisted by a Guerilla fighting off Assembled 513 | -9/Mines | Met a Derelict bent on vengeance 541 | -9/Mines | Discovered new exit (range 7) 543 | -9/Mines | Identified exit to Materials 550 | -9/Mines | System corruption reached 10% 654 | -9/Mines | Entered Materials 654 | -8/Materials | Evolved 4 slots: Propulsion x2, Utility x2 798 | -8/Materials | Identified exit to Factory 946 | -8/Materials | Entered Factory 946 | -7/Factory | Evolved 2 slots: Propulsion x1, Utility x1 1024 | -7/Factory | Identified exit to Storage 1024 | -7/Factory | Identified exit to Lower Caves 1791 | -7/Factory | Discovered new exit (range 4) 1792 | -7/Factory | Identified exit to Factory 2096 | -7/Factory | Sucked down chute 2096 | -7/Factory | Entered Waste 2097 | -7/Waste | Joined by Warlord forces that had cleared the area 2197 | -7/Waste | Discovered new exit (range 11) 2203 | -7/Waste | Identified exit to Factory 2204 | -7/Waste | Entered Factory 2231 | -7/Factory | Discovered exit to Lower Caves (range 10) 2234 | -7/Factory | Entered Lower Caves 2343 | -7/Lower Caves | Encountered a Warlord checkpoint 2351 | -7/Lower Caves | Discovered new exit (range 12) 2423 | -7/Lower Caves | Identified exit to Lower Caves 2423 | -7/Lower Caves | Entered another Lower Caves area 2488 | -7/Lower Caves | Spotted B-75 Beast 2508 | -7/Lower Caves | Learned 4 Factory zone layouts 2531 | -7/Lower Caves | Build established: Scavenger-Scout 2595 | -7/Lower Caves | Encountered a Warlord checkpoint 2603 | -7/Lower Caves | Discovered new exit (range 9) 2605 | -7/Lower Caves | Identified exit to Data Miner 2605 | -7/Lower Caves | Entered Data Miner 2605 | -7/Data Miner | Discovered new exit (range 6) 2610 | -7/Data Miner | Met Data Miner 2615 | -7/Data Miner | Learned location of Section 7 (-3) 2615 | -7/Data Miner | Acquired the access code to Warlord's prototype stash 2621 | -7/Data Miner | Received God Mode back door access code from Data Miner 2625 | -7/Data Miner | Destroyed Data Miner 2628 | -7/Data Miner | Interfaced with the Data Conduit 2628 | -7/Data Miner | Found Prototype Hackware 2631 | -7/Data Miner | Found Prototype Hackware 2657 | -7/Data Miner | Found Prototype Hackware 2665 | -7/Data Miner | Identified exit to Proximity Caves 2665 | -7/Data Miner | Entered Proximity Caves 2840 | -6/Proximity Caves | Spotted B-75 Beast 2841 | -6/Proximity Caves | Learned location of 1 exit from Factory 2882 | -6/Proximity Caves | Discovered exit to Factory (range 8) 2903 | -6/Proximity Caves | Entered Factory 2903 | -6/Factory | Evolved 2 slots: Propulsion x1, Utility x1 2904 | -6/Factory | Identified exit to Factory 2906 | -6/Factory | Loaded intel: 300 machine locations 2912 | -6/Factory | Identified Quantum Router 2913 | -6/Factory | Identified System Mapper 2913 | -6/Factory | Identified Deep Network Scanner 2936 | -6/Factory | Identified exit to Lower Caves 3195 | -6/Factory | Build established: Hacker-Scout 3266 | -6/Factory | Entered Lower Caves 3274 | -6/Lower Caves | Attacked by a faux Warlord 3320 | -6/Lower Caves | Found Alien Artifact 3320 | -6/Lower Caves | Identified Core Expander 3320 | -6/Lower Caves | Installed Core Expander, added new Weapon slot 3332 | -6/Lower Caves | A Commander dispatched an escort 3333 | -6/Lower Caves | Learned Extension trap positions 3333 | -6/Lower Caves | Learned Extension security intel 3496 | -6/Lower Caves | Discovered new exit (range 11) 3621 | -6/Lower Caves | Identified exit to Lower Caves 3621 | -6/Lower Caves | Entered another Lower Caves area 3627 | -6/Lower Caves | Learned 8 Factory zone layouts 3629 | -6/Lower Caves | Discovered exit to Factory (range 8) 3923 | -6/Lower Caves | Encountered a Warlord checkpoint 4135 | -6/Lower Caves | Discovered new exit (range 12) 4145 | -6/Lower Caves | Identified exit to Zion 4146 | -6/Lower Caves | Entered Zion 4268 | -6/Zion | Rebuked by Imprinter 4292 | -6/Zion | Learned Factory terminal intel 4321 | -6/Zion | Learned 12 Factory zone layouts 4342 | -6/Zion | Discovered new exit (range 14) 4345 | -6/Zion | Identified exit to Proximity Caves 4346 | -6/Zion | Entered Proximity Caves 4726 | -5/Proximity Caves | Discovered exit to Factory (range 9) 4728 | -5/Proximity Caves | Entered Factory 4728 | -5/Factory | Evolved 2 slots: Power x1, Propulsion x1 4729 | -5/Factory | Identified exit to Factory 4729 | -5/Factory | Identified exit to Upper Caves 4729 | -5/Factory | Identified exit to Extension 4730 | -5/Factory | Loaded intel: 256 machine locations 4731 | -5/Factory | Loaded intel: 28 terminal locations 4959 | -5/Factory | Fabricated Cld. Cesium-ion Thruster (x1) 4972 | -5/Factory | Spotted B-75 Beast 5049 | -5/Factory | Fabricated Imp. Cesium-ion Thruster (x1) 5472 | -5/Factory | Lost 3 parts (1p1n1u) 5572 | -5/Factory | Entered Extension 5573 | -5/Extension | Loaded intel: 18 trap records 5575 | -5/Extension | Loaded intel: 30 machine locations 5587 | -5/Extension | Rescued A7 5734 | -5/Extension | Build established: Hacker-Sprinter 6189 | -5/Extension | Spotted B-75 Beast 6196 | -5/Extension | Build established: Commander-Sprinter 6204 | -5/Extension | Spotted B-75 Beast 6214 | -5/Extension | Allies destroyed B-75 Beast 6226 | -5/Extension | Allies destroyed B-75 Beast 6535 | -5/Extension | Rescued a captive Derelict 6540 | -5/Extension | Discovered exit to Factory (range 10) 6541 | -5/Extension | Discovered new exit (range 6) 6656 | -5/Extension | Entered Cetus 6656 | -5/Cetus | Accompanied by 10 allies (A7) 6657 | -5/Cetus | Loaded intel: 24 machine locations 6661 | -5/Cetus | Acquired a Cetus Manufacturing Module code from A7 6675 | -5/Cetus | Spotted Cetus Guard 6676 | -5/Cetus | Spotted Cetus Guard 6677 | -5/Cetus | Spotted Cetus Guard 6677 | -5/Cetus | Spotted Cetus Guard 6697 | -5/Cetus | Allies destroyed Cetus Guard 6698 | -5/Cetus | Allies destroyed Cetus Guard 6703 | -5/Cetus | Allies destroyed Cetus Guard 6710 | -5/Cetus | Started Cetus Manufacturing Module 6735 | -5/Cetus | Manufactured an Enhanced Grunt 6760 | -5/Cetus | Manufactured an Enhanced Grunt 6785 | -5/Cetus | Manufactured an Enhanced Grunt 6810 | -5/Cetus | Manufactured an Enhanced Grunt 6835 | -5/Cetus | Manufactured an Enhanced Grunt 6852 | -5/Cetus | Cetus Manufacturing Module disabled 6855 | -5/Cetus | Discovered new exit (range 21) 6913 | -5/Cetus | Entered Archives 6913 | -5/Archives | Accompanied by 10 allies 6914 | -5/Archives | Loaded intel: 8 machine locations 6983 | -5/Archives | Discovered new exit (range 22) 7008 | -5/Archives | Discovered exit to Factory (range 21) 7008 | -5/Archives | Discovered new exit (range 17) 7259 | -5/Archives | Build established: Hacker-Sprinter 9001 | -5/Archives | Entered Hub_04(d) 9001 | -5/Hub_04(d) | Accompanied by 7 allies 9001 | -5/Hub_04(d) | Discovered exit to Factory (range 23) 9002 | -5/Hub_04(d) | Loaded intel: 85 machine locations 9137 | -5/Hub_04(d) | Spotted B-75 Beast 9143 | -5/Hub_04(d) | Network Hub disabled 9146 | -5/Hub_04(d) | Spotted Lightning 9147 | -5/Hub_04(d) | Spotted Lightning 9147 | -5/Hub_04(d) | Discovered exit to Factory (range 5) 9147 | -5/Hub_04(d) | Discovered exit to Factory (range 19) 9147 | -5/Hub_04(d) | Spotted Lightning 9148 | -5/Hub_04(d) | Entered Factory 9148 | -4/Factory | Evolved 2 slots: Utility x2 9149 | -4/Factory | Loaded intel: 300 machine locations 9295 | -4/Factory | Identified exit to Upper Caves 9347 | -4/Factory | Spotted B-86 Titan 9390 | -4/Factory | Fabricated Cld. Nuclear Pulse Thruster (x1) 9429 | -4/Factory | Build established: Wizard-Sprinter 9514 | -4/Factory | Fabricated Cld. Nuclear Pulse Thruster (x1) 9547 | -4/Factory | Entered Upper Caves 9584 | -4/Upper Caves | Attracted the attention of an 0b10 outpost 9593 | -4/Upper Caves | Attracted the attention of an 0b10 checkpoint 9600 | -4/Upper Caves | Spotted B-86 Titan 9630 | -4/Upper Caves | Discovered new exit (range 4) 9630 | -4/Upper Caves | Entered another Upper Caves area 9630 | -4/Upper Caves | Discovered new exit (range 9) 9642 | -4/Upper Caves | Learned Research security intel 9779 | -4/Upper Caves | Spotted B-86 Titan 9784 | -4/Upper Caves | Discovered new exit (range 9) 9786 | -4/Upper Caves | Entered Zhirov 9786 | -4/Zhirov | Discovered new exit (range 3) 9790 | -4/Zhirov | Met Zhirov 9796 | -4/Zhirov | Zhirov requested help retrieving the SGEMP Prototype 9799 | -4/Zhirov | Found Alien Artifact 9799 | -4/Zhirov | Identified Integrated Reactor 9799 | -4/Zhirov | Installed Integrated Reactor, increased core energy generation (+10) 9805 | -4/Zhirov | Found Alien Artifact 9828 | -4/Zhirov | Entered Proximity Caves 9832 | -3/Proximity Caves | Spotted B-86 Titan 9890 | -3/Proximity Caves | Discovered new exit (range 7) 9892 | -3/Proximity Caves | Entered Research 9892 | -3/Research | Evolved 2 slots: Propulsion x1, Utility x1 9894 | -3/Research | Loaded intel: 88 machine locations 9914 | -3/Research | Identified exit to Armory 9914 | -3/Research | Identified exit to Quarantine 9996 | -3/Research | Entered Armory 9997 | -3/Armory | Loaded intel: 85 machine locations 10059 | -3/Armory | Repaired Lgt. Fission Core 10095 | -3/Armory | Spotted B-86 Titan 10105 | -3/Armory | Discovered new exit (range 17) 10164 | -3/Armory | Identified Transdimensional Reconstructor 10164 | -3/Armory | Warped through subspace to slip node 10164 | -3/Armory | Discovered new exit (range 1) 10180 | -3/Armory | Entered Lab 10180 | -3/Lab | Discovered new exit (range 9) 10182 | -3/Lab | Hidden lab's door opened automatically 10182 | -3/Lab | Sensor layout match revealed 10183 | -3/Lab | Gained access to the hidden lab's interior 10225 | -3/Lab | Decrypted terminal 10233 | -3/Lab | Found Prototype Energy Cannon 10233 | -3/Lab | Identified Warp Cannon 10235 | -3/Lab | Found Prototype Energy Gun 10235 | -3/Lab | Identified Hyp. EM Gauss Rifle 10239 | -3/Lab | Found Prototype Protection 10239 | -3/Lab | Identified Exp. Powered Armor 10242 | -3/Lab | Found Deep Network Scanner 10259 | -3/Lab | Found Transdimensional Reconstructor 10290 | -3/Lab | Found Alien Artifact 10290 | -3/Lab | Identified Integrated Mediator 10290 | -3/Lab | Installed Integrated Mediator, increased core attachment efficiency. 10353 | -3/Lab | Entered Research 10353 | -2/Research | Evolved 2 slots: Propulsion x1, Utility x1 10354 | -2/Research | Loaded intel: 126 machine locations 10664 | -2/Research | Build established: Hacker-Scout 10688 | -2/Research | Discovered new exit (range 12) 10699 | -2/Research | Entered Access 10699 | -1/Access | Evolved 2 slots: Utility x2 10700 | -1/Access | Loaded intel: 106 machine locations 10705 | -1/Access | Spotted B-99 Colossus 10837 | -1/Access | Fabricated Cld. Nuclear Pulse Thruster (x1) 10880 | -1/Access | Fabricated Cld. Nuclear Pulse Thruster (x1) 10922 | -1/Access | Discovered new exit (range 6) 10925 | *** | Escaped! Last Messages --------------- 10903_ O-32 Director: "IFF HANDSHAKE FAILED. SECURING TERMINAL." 10903_ Connecting with Terminal... >>Trojan(Assimilate) Trojan loaded successfully. Testing... System interface override in place. 10906_ O-32 Director accesses terminal... 10906_ O-32 Director IFF database reprogrammed. 10908_ K-01 Serf collects debris. 10911_ R-10 Processor collects Transport Network Coupler. 10912_ K-01 Serf collects debris. 10914_ R-10 Processor collects Lrg. Storage Unit. 10915_ K-01 Serf collects debris. 10916_ Director 10b reveals location of Blade Trap. 10917_ R-10 Processor collects Exp. Energy Well. 10922_ Connecting with Terminal... >>Open(Door) Sealed Barrier opened. 10922_ The Access Shell folds into the floor. 10922_ EXIT=FOUND Map ----- +----------------------------------------------------+ | ##????????????????????????????"??????????????? | | ##??????????????????????????""""?????????????? | | # ?????????????????????????"""""?????????????? | | ] # ??????????????????????????"""""????????????? | | # ??????????????????????????""""?????????????? | | # ???????????????????????????"???????????????? | | # ???????????????????????????????????????????? | | # ???????????????????????????????????????????? | | ### # ???????????????????????????????????????????? | | ### ##????????????????????g??????????????????????? | | ### ##??????????????????????g????????????????????? | | ### ##?????????????????????g?????????????????????? | | ### ##?????????????????????b?????????????????????? | | ### ##???????????????????????????????????????????? | | ### #######??????????BB????BB????????????????????? | | ###+#######??????????BB????BB????????????????????? | | ##??????????????????????????????????????? | | * ##?????????""""""""""???????????????????? | | " !##?????????""""""""""???????????????????? | | """ ##???????##""""""""""##?????????????????? | | """ ##???????##""""""""""##?????????????????? | | " ##???????## ##?????????????????? | | ##???????## ##?????????????????? | | ##???????## ##?????????????????? | | ###########???????## "" ##?????????????????? | | ###########???????## "@ ##?????????????????? | | ##????????????????## ##?????????????????? | | #############?????## ##?????????????????? | | #############????### ###????????????????? | | """""""""""####??### ###????????????????? | | """"T"""" ####??## ##????????????????? | | ##??###"" ###????????????????? | | ##??###"" ###????????????????? | | ##???##"" ##????????????"????? | | ==] ##???##T ##???????????"""???? | | ==] ##???##"" ##????????????"""??? | | =] ! #######""l #######????????"???? | | =#######"" g #######? # ????????? | | * %*%^^!! g # ????????? | | ^ !!^^!=g g # ????????? | | +#############+## #################+#####????????? | | #### ################ ????????? | | ???????## !###?????????????????????????????? | | ???????## " ##??????????????""??????????????? | | "??????## """ ##??????????????"""?????????????? | | ""?????## """ ##??????????????"R??????????????? | | "??????## " ##??????????????"""?????????????? | | ???????## ##??????????????""??????????????? | | ???????## ##??????????????????????????????? | | ???????## ##??????????????????????????????? | +----------------------------------------------------+ Best States ------------- Heat Dissipation 108 Energy Generation 39 Energy Capacity 710 Matter Stores 300 Matter Capacity 300 Sight Range 22 Robot Scan Range 15 Terrain Scan Density 210 Armor Coverage 450 Utility Shielding 66 Evasion (%) 67 Core Analysis 6 Recoil Reduction 1 Offensive Hacking 39 Defensive Hacking 25 Authchip Count 1 Item Schematics ----------------- Combat Drone Bay | -7/Data Miner | Free Lgt. Regenerative Plating | -7/Data Miner | Free Cld. Cesium-ion Thruster | -7/Data Miner | Free Gravity Neutralizer | -7/Data Miner | Free Scatter Rocket Array | -7/Data Miner | Free Nuclear Pulse Array | -7/Data Miner | Free Imp. Transmission Jammer | -7/Data Miner | Free Hvy. Phase Cannon | -7/Data Miner | Free Arm. Medium Treads | -7/Data Miner | Free Tesla Rifle | -7/Data Miner | Free Imp. System Guard | -7/Data Miner | Free Beamcaster | -6/Zion | Archive Adv. Signal Interpreter | -6/Zion | Archive Imp. Arc Projector | -6/Zion | Archive Adv. Heat Sink | -6/Zion | Archive Enh. Gauss Cannon | -6/Zion | Archive Imp. Component Analysis Suite | -6/Zion | Archive Adv. Focal Shield | -6/Zion | Archive Hardcell Cannon | -6/Zion | Archive Hvy. Pick | -6/Zion | Archive Recoil Nullifier | -6/Zion | Archive Wave Gun | -6/Zion | Archive Imp. Medium Treads | -6/Zion | Archive Imp. Trap Scanner | -6/Zion | Archive Imp. Cesium-ion Thruster | -5/Factory | Hacked Cld. Nuclear Pulse Thruster | -4/Factory | Hacked Assault Drone Bay | -4/Zhirov | Free Exp. Heat Sink | -4/Zhirov | Free Exp. Optical Array | -4/Zhirov | Free Imp. Arc Thrower | -4/Zhirov | Free Robot Schematics ------------------ A-15 Conveyor | -7/Data Miner | Free O-24 Administrator | -7/Data Miner | Free G-50 Soldier | -7/Data Miner | Free E-15 Imp | -7/Data Miner | Free L-41 Fighter | -7/Data Miner | Free S-27 Virus | -7/Data Miner | Free A-02 Transporter | -6/Zion | Archive X-77 Beamer | -6/Zion | Archive Fabricated ------------ Cld. Cesium-ion Thruster | x1 | -5/Factory Imp. Cesium-ion Thruster | x1 | -5/Factory Cld. Nuclear Pulse Thruster | x1 | -4/Factory | Authchip Cld. Nuclear Pulse Thruster | x1 | -4/Factory Cld. Nuclear Pulse Thruster | x1 | -1/Access | Authchip Cld. Nuclear Pulse Thruster | x1 | -1/Access Alien Tech Used ----------------- Core Expander Integrated Reactor Transdimensional Reconstructor Integrated Mediator Achievements -------------- None Challenges ------------ None Game ------ Seed CargoHardenedNullifier Manual? 0 Play Time 02:00:57 Cumulative 843.5 hours Start 2022.11.13 @ 10:45:25 End 2022.11.13 @ 13:05:54 Sessions 1 Manual Loads 0 Difficulty Rogue Special Mode None Game No. 379 Rogue 378 Adventurer 1 Explorer 0 Win Type 0 Total 116 Types 30/11/16/4/2/1/48/3/1 Lore% 99 Gallery% 99 Achievement% 90 Wizard Run 0 Options --------- ASCII 1 Keyboard 1 Movement Numpad Keybinds 0 Fullscreen 0 Font 18/Smallcaps Map View 76x50 Tactical HUD 1 Map Filters NONE Filters NONE Steam 1 RUN: 90a9299e-79ff-4572-b0e3-6665c61d778d